bitfinex/quotes_ETHUSD_20260304
["timestamp","ask_amount","ask_price","bid_price","bid_amount"]
[1772639414896,0.002,2133.7,2132.8,1.17216804]
[1772639415208,0.002,2133.7,2132.7,5.69363238]
[1772639415409,0.002,2133.7,2132.3,5.69388647]
[1772639415711,0.002,2133.7,2132.4,4.52144357]
[1772639416092,4.82996233,2133.7,2132.4,4.52144357]
[1772639416416,4.82996233,2133.7,2132.2,0.001]
[1772639416417,5.74796233,2133.6,2132.2,0.001]
[1772639416585,5.74796233,2133.6,2132.2,1.17349361]
[1772639416789,1.17178345,2133.5,2132.2,5.69493718]
[1772639416986,1.97178345,2133.5,2132.2,5.69493718]
[1772639417296,1.97178345,2133.5,2132.3,4.52144357]
[1772639417618,1.17178345,2133.5,2132.3,4.52144357]
[1772639417815,5.99974578,2133.5,2132.2,1.17349361]
[1772639418115,4.82796233,2133.3,2132.2,0.001]
[1772639418884,0.065536,2133.5,2132.2,4.39559165]
[1772639419497,4.68713381,2133.6,2132.2,4.39559165]
[1772639420527,4.63547558,2133.5,2132.2,0.001]
[1772639420733,4.68713381,2133.6,2132.2,4.39559165]
[1772639420903,4.68713381,2133.6,2132.4,4.39459165]
[1772639422139,0.002,2133.7,2132.4,4.39459165]
[1772639422337,1.17368417,2133.7,2132.6,4.39459165]
[1772639422526,0.002,2133.7,2132.8,4.39459165]
[1772639422832,0.002,2133.7,2132.9,1.17211308]
[1772639423145,0.002,2133.7,2133.0,4.39459165]
[1772639423318,0.002,2133.9,2133.2,4.70502452]
[1772639423509,1.17357129,2133.9,2133.2,4.70502452]
[1772639423707,1.17357129,2133.9,2132.9,1.17211308]
[1772639423911,5.95814188,2133.9,2132.8,1.17212597]
[1772639424326,5.70557059,2133.8,2132.4,1.17238791]
[1772639424526,5.70557059,2133.8,2132.2,0.001]
[1772639424527,5.70557059,2133.8,2132.2,1.17346554]
[1772639424741,4.78457059,2133.5,2132.2,1.17346554]
[1772639424943,4.78457059,2133.2,2132.2,0.001]
[1772639425245,5.70557059,2133.1,2132.2,0.001]
[1772639425409,1.17183838,2133.4,2132.2,0.001]
[1772639425745,0.921,2133.0,2132.2,0.001]
[1772639426240,0.921,2133.0,2132.2,4.70602452]
[1772639426742,1.17183838,2133.4,2132.4,0.001]
[1772639426913,1.17183838,2133.4,2132.6,1.17227797]
[1772639426914,2.09283838,2133.4,2132.6,1.17227797]
[1772639427116,2.09283838,2133.4,2132.5,5.87731301]
[1772639427325,2.09283838,2133.4,2132.5,1.17228849]
[1772639427528,2.09283838,2133.4,2132.5,5.87731301]
[1772639428234,0.921,2133.4,2132.5,5.87731301]
[1772639428431,2.09284183,2133.4,2132.5,5.87731301]
[1772639428745,0.921,2133.4,2132.5,5.87731301]
[1772639428940,4.68899856,2133.6,2132.5,5.87731301]
[1772639428941,0.002,2133.6,2132.5,5.87731301]
[1772639429759,0.002,2133.6,2132.7,4.70502452]
[1772639429961,0.002,2133.6,2132.9,4.70502452]
[1772639430659,0.002,2133.6,2132.9,5.67002452]
[1772639430839,0.002,2133.6,2132.9,4.70502452]
[1772639431045,0.002,2133.8,2133.1,4.70502452]
[1772639431444,0.002,2133.8,2133.0,1.17205813]
[1772639431445,0.924,2133.8,2133.0,1.17205813]
[1772639431860,0.924,2133.8,2132.7,4.70502452]
[1772639431861,0.924,2133.8,2132.8,1.17216804]
[1772639432652,0.924,2133.8,2132.8,5.87719256]
[1772639432956,0.924,2133.8,2133.0,4.70502452]
[1772639432957,0.002,2133.8,2133.0,4.70502452]
[1772639434032,0.002,2134.1,2133.2,4.70502452]
[1772639434248,0.002,2134.1,2133.4,4.70502452]
[1772639434445,0.002,2134.3,2133.6,4.70502452]
[1772639434630,0.002,2134.3,2133.8,4.70502452]
[1772639435154,0.002,2134.3,2133.9,1.1715638]
[1772639435356,0.002,2134.8,2134.0,4.70502452]
[1772639435558,0.002,2134.8,2134.2,4.70502452]
[1772639435957,0.002,2134.8,2133.9,5.87658832]
[1772639438163,0.002,2134.8,2134.0,0.967]
[1772639438351,0.002,2134.8,2134.1,4.70502452]
[1772639438761,0.002,2134.8,2133.9,1.1715638]
[1772639439374,0.002,2134.8,2133.9,5.87658832]
[1772639440286,1.17081543,2135.3,2134.0,4.70502452]
[1772639440455,1.1706312,2135.6,2134.0,4.70502452]
[1772639440646,1.1706312,2135.6,2134.2,4.70502452]
[1772639440845,1.1706312,2135.6,2134.4,4.70502452]
[1772639441055,0.002,2134.6,2134.5,1.17123448]
[1772639441246,4.68181353,2136.0,2134.5,5.876259]
[1772639441456,0.002,2134.8,2134.5,5.876259]
[1772639441657,4.68181353,2136.0,2134.5,5.876259]
[1772639441860,0.002,2135.1,2134.5,5.876259]
[1772639442072,0.002,2135.1,2134.6,4.70502452]
[1772639442950,6.87598257,2136.1,2134.6,4.70502452]
[1772639442951,1.17041198,2136.1,2134.6,4.70502452]
[1772639443169,5.60083341,2136.4,2134.6,4.70502452]
[1772639443170,4.68105444,2136.3,2134.8,4.70502452]
[1772639443615,4.68105444,2136.3,2134.4,4.68509802]
[1772639443616,1.97595716,2136.0,2134.1,2.13331809]
[1772639443899,1.93658084,2135.7,2134.1,4.70502452]
[1772639444083,4.78457059,2136.0,2134.1,4.70502452]
[1772639444463,4.78457059,2136.0,2134.3,4.70502452]
[1772639444669,5.58457059,2135.8,2134.4,0.969]
[1772639445291,5.95514698,2135.7,2134.5,1.17123448]
[1772639445493,5.95514698,2135.7,2134.2,0.969]
[1772639445888,5.95514698,2135.7,2134.2,5.67402452]
[1772639446899,5.48230556,2135.8,2134.2,5.67402452]
[1772639446900,0.8,2135.8,2134.2,5.67402452]
[1772639447075,9.46505446,2136.6,2135.0,4.70502452]
[1772639447076,1.17013807,2136.5,2135.0,4.70502452]
[1772639447278,1.16991904,2136.9,2135.2,4.70502452]
[1772639447880,4.85010659,2136.8,2135.3,0.97]
[1772639448112,4.78457059,2136.8,2135.4,4.70502452]
[1772639448281,1.16991904,2136.9,2135.4,4.70502452]
[1772639448282,1.16975481,2137.2,2135.4,4.70502452]
[1772639448477,1.16975481,2137.2,2135.6,4.3853559]
[1772639449202,4.68201927,2137.3,2135.8,4.3853559]
[1772639449203,0.003,2137.3,2135.8,4.3853559]
[1772639449376,0.003,2137.3,2136.0,4.3853559]
[1772639449771,0.003,2137.3,2136.0,6.88788625]
[1772639450078,0.003,2137.3,2136.1,5.3553559]
[1772639450304,0.003,2137.3,2136.2,0.97]
[1772639450525,0.003,2137.3,2136.3,4.3853559]
[1772639450717,0.003,2137.3,2136.4,0.97]
[1772639450918,0.003,2137.3,2136.4,4.3853559]
[1772639451119,0.003,2137.3,2136.5,0.97]
[1772639451294,0.003,2137.3,2136.6,1.1700833]
[1772639451617,0.003,2137.3,2136.7,0.97]
[1772639451933,0.003,2137.3,2136.5,4.3853559]
[1772639452107,0.003,2137.3,2136.3,1.17024762]
[1772639452289,0.003,2137.3,2136.4,0.97]
[1772639452635,0.003,2137.3,2136.4,5.3553559]
[1772639452992,0.003,2137.3,2136.6,4.3853559]
[1772639453229,9.16963007,2138.2,2136.3,1.17024762]
[1772639453230,4.49192402,2139.9,2136.9,0.065536]
[1772639453413,4.49192402,2139.9,2137.2,4.3853559]
[1772639453414,4.49192402,2139.2,2137.2,4.3853559]
[1772639453596,4.49192402,2138.9,2137.2,4.3853559]
[1772639453791,6.46254442,2138.7,2137.3,0.968]
[1772639454022,6.46254442,2138.7,2137.2,4.3853559]
[1772639454224,4.49192402,2137.7,2136.7,2.85582129]
[1772639454443,0.002,2137.1,2136.7,2.85582129]
[1772639454650,0.002,2137.1,2136.7,4.02584863]
[1772639454814,0.002,2137.1,2136.7,2.85582129]
[1772639455314,0.002,2137.1,2136.3,0.964]
[1772639455548,0.002,2137.1,2136.2,0.964]
[1772639456439,0.002,2137.1,2136.0,1.17041198]
[1772639456640,0.002,2137.1,2136.1,4.3853559]
[1772639456818,0.002,2137.1,2136.0,1.17041198]
[1772639457219,0.002,2137.1,2136.2,1.1703024]
[1772639457741,0.002,2137.1,2136.2,5.5556583]
[1772639457928,0.002,2137.3,2136.3,4.3853559]
[1772639458134,4.49192402,2138.2,2136.3,4.3853559]
[1772639458333,1.16924058,2138.2,2136.5,4.3853559]
[1772639458525,1.16904372,2138.5,2136.5,4.3853559]
[1772639459131,1.16904372,2138.5,2136.7,4.3853559]
[1772639459447,1.16902961,2138.6,2137.0,4.4508919]
[1772639459649,1.16902961,2138.6,2137.1,0.966]
[1772639459846,1.16882509,2138.9,2137.2,4.3853559]
[1772639460151,1.16882509,2138.9,2136.9,1.16991904]
[1772639460152,1.16882509,2138.9,2137.3,4.3853559]
[1772639460358,5.66074911,2138.9,2137.4,0.966]
[1772639460530,4.49192402,2138.8,2137.5,0.967]
[1772639460719,4.49192402,2138.8,2137.0,4.3853559]
[1772639461014,4.49192402,2138.8,2137.1,5.3523559]
[1772639461237,5.66053057,2139.3,2137.6,1.16953592]
[1772639461421,1.16860655,2139.3,2137.7,4.3853559]
[1772639461621,1.16860655,2139.3,2137.9,4.3853559]
[1772639461926,1.16844269,2139.6,2137.9,4.3853559]
[1772639462343,4.67311556,2140.3,2138.1,4.3853559]
[1772639462517,4.67311556,2140.3,2138.0,2.50253035]
[1772639462518,4.49192402,2140.2,2138.3,4.3853559]
[1772639462913,3.45867762,2140.4,2138.0,2.50253035]
[1772639462914,1.48800988,2140.4,2138.7,4.3853559]
[1772639463113,1.48800988,2140.4,2138.8,0.967]
[1772639463351,5.9799339,2140.4,2138.8,5.3523559]
[1772639463648,5.9799339,2140.4,2138.9,1.16882509]
[1772639464225,5.9799339,2140.4,2138.9,5.55418099]
[1772639464435,4.49192402,2140.3,2138.9,1.16882509]
[1772639465596,1.48800988,2140.4,2139.1,1.16871581]
[1772639466045,6.46254442,2139.7,2138.2,1.16916736]
[1772639466236,4.49192402,2139.3,2138.1,0.48673703]
[1772639466414,4.8522408,2139.6,2138.1,0.48673703]
[1772639466415,2.8816204,2139.2,2138.1,0.48673703]
[1772639466743,4.49192402,2139.1,2138.1,0.48673703]
[1772639467115,4.49192402,2139.1,2137.6,1.16950686]
[1772639467542,1.16849731,2139.5,2137.7,4.3853559]
[1772639467740,2.07949731,2139.5,2137.7,4.3853559]
[1772639468046,4.49192402,2139.4,2137.8,0.967]
[1772639468242,4.49192402,2139.4,2137.7,4.3853559]
[1772639468449,4.49192402,2139.2,2137.6,1.16950686]
[1772639468859,6.46254442,2138.8,2137.4,1.16964536]
[1772639469033,5.40292402,2138.8,2137.4,1.16964536]
[1772639469569,1.16893439,2138.7,2137.4,5.55500126]
[1772639469746,1.16866118,2139.2,2137.9,0.001]
[1772639470173,5.6605852,2139.2,2137.9,0.001]
[1772639470565,4.49192402,2139.1,2137.9,0.001]
[1772639471378,4.49192402,2138.8,2137.9,0.001]
[1772639471545,1.16909839,2138.4,2137.9,0.001]
[1772639471860,4.49192402,2138.2,2137.6,0.001]
[1772639472061,4.49192402,2137.9,2136.9,0.46288367]
[1772639472259,4.49192402,2137.7,2136.9,1.63279543]
[1772639472458,0.911,2137.7,2136.9,1.63279543]
[1772639472662,0.911,2138.3,2136.9,1.63279543]
[1772639472849,0.911,2138.3,2136.9,6.01815133]
[1772639473680,1.16909839,2138.4,2137.0,4.3853559]
[1772639474344,2.08009839,2138.4,2137.0,4.3853559]
[1772639474569,4.49192402,2138.3,2136.9,1.63279543]
[1772639475650,1.16920774,2138.2,2136.9,6.01815133]
[1772639476053,4.49192402,2138.1,2136.9,1.63279543]
[1772639476290,0.911,2138.1,2136.9,1.63279543]
[1772639476575,0.911,2138.1,2136.9,6.01815133]
[1772639477147,5.40292402,2138.1,2136.9,1.63279543]
[1772639477367,4.49192402,2138.0,2136.9,1.63279543]
[1772639477769,1.16937181,2137.9,2136.9,1.63279543]
[1772639478279,5.66129583,2137.9,2136.9,1.63277167]
[1772639478863,1.16937181,2137.9,2136.9,1.63277167]
[1772639479068,4.67748725,2138.0,2136.9,1.63277167]
[1772639479069,1.16932362,2138.0,2136.9,1.63277167]
[1772639479373,0.911,2138.1,2137.0,4.71066814]
[1772639479756,0.911,2138.1,2137.1,1.16980955]
[1772639479947,0.911,2138.1,2137.1,5.88047769]
[1772639480143,2.08026828,2138.1,2137.1,1.16980955]
[1772639480949,0.911,2138.1,2137.1,5.88047769]
[1772639481172,2.08026731,2138.1,2137.1,5.88047769]
[1772639481474,4.75774058,2138.0,2137.1,1.16980955]
[1772639481677,4.75774058,2138.0,2136.9,0.46288367]
[1772639481678,4.75774058,2137.8,2136.9,0.46288367]
[1772639481877,5.92720769,2137.8,2136.9,0.46288367]
[1772639482756,5.92720769,2137.8,2136.9,1.63278052]
[1772639482962,5.92720769,2137.8,2136.9,1.63279621]
[1772639483163,5.92720769,2137.8,2136.9,1.63279968]
[1772639484176,5.92720769,2137.8,2136.9,0.46288367]
[1772639484377,5.92720769,2137.8,2136.9,1.63279919]
[1772639484882,5.92720769,2137.8,2136.9,1.63379919]
[1772639485251,3.84637589,2137.9,2136.9,1.63379919]
[1772639485457,0.912,2137.8,2136.9,1.63379919]
[1772639485676,1.17139757,2137.9,2136.9,1.63379919]
[1772639486178,5.9126735,2137.9,2136.9,1.63379919]
[1772639486579,1.17139757,2137.9,2136.9,1.63379919]
[1772639486784,0.002,2137.9,2137.0,4.5701441]
[1772639487780,0.002,2138.1,2137.2,4.5701441]
[1772639488110,0.002,2138.1,2137.4,4.5701441]
[1772639488779,0.002,2138.1,2137.1,4.67901927]
[1772639488968,0.002,2138.1,2137.1,4.5701441]
[1772639489883,0.002,2138.4,2137.1,4.5701441]
[1772639489884,0.002,2138.4,2137.3,4.5701441]
[1772639490182,0.002,2138.4,2137.2,1.16975481]
[1772639490183,0.002,2138.4,2137.4,0.969]
[1772639490357,1.16871581,2139.1,2137.5,4.5701441]
[1772639490549,1.1686998,2139.2,2137.5,4.5701441]
[1772639490785,1.16864468,2139.3,2137.5,4.5701441]
[1772639491088,1.16864468,2139.3,2137.7,4.5701441]
[1772639491965,6.14427593,2139.7,2137.9,4.5701441]
[1772639491966,1.16844269,2139.6,2137.9,4.5701441]
[1772639492162,6.07593881,2140.0,2138.3,4.5701441]
[1772639492163,1.16822429,2140.0,2138.3,4.5701441]
[1772639492380,1.16822429,2140.0,2138.5,4.5701441]
[1772639492583,1.16822429,2140.0,2138.6,5.5391441]
[1772639492857,1.16822429,2140.0,2138.7,5.5391441]
[1772639493081,1.17016353,2140.2,2138.7,5.5391441]
[1772639493282,0.002,2140.2,2138.7,5.5391441]
[1772639493895,0.002,2140.2,2139.1,4.5701441]
[1772639494396,0.002,2140.2,2138.8,0.70194965]
[1772639494397,4.74327593,2140.2,2138.8,0.70194965]
[1772639494582,4.74127593,2139.9,2138.8,0.70194965]
[1772639495190,4.74127593,2139.6,2138.8,0.70194965]
[1772639495956,1.16844461,2139.6,2138.8,1.87082462]
[1772639496383,1.16844461,2139.6,2138.8,0.70194965]
[1772639496583,5.90972054,2139.6,2138.8,0.70194965]
[1772639496993,4.74127593,2139.5,2137.8,1.16942651]
[1772639497196,3.13906501,2139.6,2137.8,1.16942651]
[1772639497197,4.74127593,2139.2,2137.8,1.16942651]
[1772639497781,0.912,2139.4,2137.9,4.5701441]
[1772639497964,4.67327577,2139.9,2138.1,4.5701441]
[1772639498485,4.67327577,2139.9,2138.3,4.5701441]
[1772639498863,4.67327577,2139.9,2138.4,0.968]
[1772639499165,4.67327577,2139.9,2138.4,5.5381441]
[1772639499568,4.67327577,2139.9,2138.5,5.5381441]
[1772639499880,4.67327577,2139.9,2137.9,4.67726847]
[1772639499881,4.74127593,2139.7,2138.2,4.67681379]
[1772639500058,6.71189633,2139.5,2137.8,4.67769586]
[1772639500463,6.71189633,2139.5,2138.1,0.001]
[1772639501177,4.74327593,2139.4,2138.1,0.001]
[1772639501377,4.74127593,2138.8,2138.1,0.001]
[1772639501591,5.65327593,2138.7,2138.1,0.001]
[1772639501791,4.74127593,2138.5,2137.9,0.001]
[1772639501980,1.16926242,2138.1,2137.1,0.6327346]
[1772639502185,2.08126242,2138.1,2137.1,1.802543]
[1772639502375,2.08126242,2138.1,2137.6,0.001]
[1772639503393,5.46013497,2139.7,2137.7,4.5701441]
[1772639503689,4.74127593,2139.2,2137.6,0.001]
[1772639503887,1.16877045,2139.0,2137.6,0.001]
[1772639504058,5.91004638,2139.0,2137.6,0.001]
[1772639504265,0.912,2138.9,2137.6,0.001]
[1772639504463,0.912,2138.9,2137.6,4.5711441]
[1772639504667,5.65327593,2138.9,2137.6,0.001]
[1772639506091,1.16887974,2138.8,2137.6,0.001]
[1772639506561,2.16812485,2139.6,2137.8,4.5701441]
[1772639506562,0.002,2139.4,2137.8,4.5701441]
[1772639506766,0.912,2139.3,2138.0,4.5701441]
[1772639506981,0.002,2139.6,2138.3,4.5701441]
[1772639507409,0.002,2139.6,2138.7,4.5701441]
[1772639507614,0.002,2139.6,2138.9,4.5701441]
[1772639507914,0.002,2139.6,2139.0,0.965]
[1772639508126,0.002,2139.6,2139.1,1.16871581]
[1772639508413,0.002,2139.6,2138.5,1.16898905]
[1772639508414,0.914,2139.6,2138.5,1.16898905]
[1772639508811,0.914,2139.6,2138.6,4.26847528]
[1772639509214,0.914,2139.6,2138.3,4.67639413]
[1772639510014,0.914,2139.6,2138.4,0.965]
[1772639510214,1.16849731,2139.5,2138.4,4.67617488]
[1772639510717,0.912,2139.4,2138.3,4.67653042]
[1772639511216,0.912,2139.4,2138.2,1.16920774]
[1772639511417,0.912,2139.4,2138.3,4.26847528]
[1772639512110,0.912,2139.4,2138.2,1.16920774]
[1772639512299,0.912,2139.4,2138.0,4.67726371]
[1772639512300,1.16860655,2139.3,2138.3,0.965]
[1772639512498,1.16860655,2139.3,2138.0,4.67726371]
[1772639512699,0.912,2139.2,2138.0,8.94573899]
[1772639513181,5.24335808,2139.1,2138.0,4.67726371]
[1772639514219,1.16882509,2138.9,2137.7,1.16948121]
[1772639514435,4.33135808,2138.8,2137.7,1.16948121]
[1772639514607,1.16882509,2138.9,2137.7,1.16948121]
[1772639514809,0.912,2138.8,2137.7,1.16948121]
[1772639515525,0.912,2138.7,2137.6,0.001]
[1772639515734,5.24335808,2138.7,2137.6,0.001]
[1772639515937,1.16882509,2138.9,2137.6,0.001]
[1772639515938,5.24335808,2138.6,2137.6,0.001]
[1772639516232,0.913,2138.5,2137.6,0.001]
[1772639516443,1.16893439,2138.7,2137.6,0.001]
[1772639516607,6.41229247,2138.7,2137.9,0.001]
[1772639516800,0.912,2138.6,2137.9,0.001]
[1772639518431,2.08101097,2138.6,2137.9,0.001]
[1772639518636,0.912,2138.6,2137.9,0.001]
[1772639518803,0.913,2139.0,2137.9,0.001]
[1772639518804,2.08178525,2139.0,2137.9,0.001]
[1772639518999,0.912,2138.9,2137.9,0.001]
[1772639519339,0.912,2138.9,2137.9,0.967]
[1772639519701,0.912,2138.9,2137.9,5.23547528]
[1772639520105,0.002,2139.2,2137.9,4.26947528]
[1772639520432,2.08074326,2139.1,2138.1,1.16926242]
[1772639520646,0.002,2139.4,2138.7,4.26847528]
[1772639520805,0.002,2139.4,2138.2,4.26847528]
[1772639521506,1.17055417,2139.4,2138.2,4.26847528]
[1772639521705,0.002,2139.4,2138.2,4.26847528]
[1772639521912,1.17056196,2139.4,2138.2,4.26847528]
[1772639522117,0.002,2139.4,2138.3,5.23447528]
[1772639522314,0.002,2139.4,2138.4,0.966]
[1772639522615,0.002,2139.4,2138.5,5.437519]
[1772639522841,0.002,2139.4,2138.6,4.26847528]
[1772639523045,0.065536,2140.7,2138.5,1.16904372]
[1772639523046,4.67135603,2140.8,2138.8,4.26847528]
[1772639523244,4.33135808,2140.4,2138.9,0.966]
[1772639523443,4.33135808,2140.4,2138.7,0.966]
[1772639523649,4.33135808,2140.4,2138.5,1.16904372]
[1772639523850,4.33135808,2140.4,2138.6,0.966]
[1772639524140,4.33135808,2140.4,2138.5,1.16904372]
[1772639524538,4.33135808,2140.2,2138.5,1.16904372]
[1772639525449,4.33135808,2140.2,2138.5,5.437519]
[1772639525755,4.33135808,2140.2,2138.6,5.23447528]
[1772639525954,4.33135808,2140.2,2138.7,0.966]
[1772639526536,4.33135808,2139.8,2138.5,0.966]
[1772639526858,4.33135808,2139.8,2138.4,2.13509839]
[1772639527360,4.33135808,2139.6,2137.6,2.11233344]
[1772639527524,4.33135808,2139.6,2138.0,1.1692899]
[1772639527728,4.33135808,2139.6,2138.1,4.26847528]
[1772639528228,4.33135808,2139.6,2138.0,1.1692899]
[1772639528229,5.49952779,2140.1,2138.2,5.23447528]
[1772639528426,1.16800598,2140.4,2138.6,4.26847528]
[1772639528643,4.33135808,2140.3,2138.8,4.26847528]
[1772639529038,4.33135808,2140.3,2138.9,0.966]
[1772639529239,4.33135808,2140.3,2138.8,4.26847528]
[1772639529646,4.33135808,2140.3,2138.6,0.966]
[1772639529962,4.33135808,2139.6,2138.0,1.16931711]
[1772639530255,4.33135808,2139.6,2137.9,8.94687977]
[1772639530256,4.33135808,2139.4,2137.9,1.17036418]
[1772639530468,1.16871581,2139.1,2137.9,0.001]
[1772639530629,4.76600606,2139.0,2137.9,0.001]
[1772639530829,4.33135808,2138.8,2137.6,0.001]
[1772639531030,1.16871581,2139.1,2137.6,0.001]
[1772639531031,4.76600606,2138.7,2137.6,0.001]
[1772639531228,0.43464798,2138.6,2137.6,0.001]
[1772639531933,0.912,2138.8,2137.6,0.001]
[1772639532139,1.16871581,2139.1,2137.6,0.001]
[1772639532326,0.43466194,2139.0,2137.7,0.965]
[1772639532526,1.16871581,2139.1,2137.8,1.16942651]
[1772639532733,1.16871581,2139.1,2137.8,6.40290179]
[1772639533140,1.16871581,2139.1,2137.8,5.43790179]
[1772639533346,1.16871581,2139.1,2137.9,0.965]
[1772639533569,1.16871581,2139.1,2138.4,0.001]
[1772639533856,4.76622536,2139.0,2137.8,1.16942651]
[1772639534034,4.33135808,2138.8,2137.7,1.16944166]
[1772639534237,0.43486728,2138.7,2138.1,0.001]
[1772639534441,4.33135808,2138.8,2138.1,0.001]
[1772639534754,1.16893439,2138.7,2138.1,0.001]
[1772639535163,1.16890768,2138.8,2138.1,0.001]
[1772639535947,5.50026576,2138.8,2138.1,0.001]
[1772639536143,1.16890768,2138.8,2138.1,0.001]
[1772639536746,4.67488368,2139.1,2138.1,0.001]
[1772639536973,0.4349085,2139.0,2138.1,0.001]
[1772639537178,0.4349085,2138.9,2138.1,0.001]
[1772639537482,4.67488368,2139.1,2138.1,0.001]
[1772639537789,4.67488368,2139.1,2137.6,1.17053592]
[1772639537790,4.76641485,2139.0,2137.6,0.001]
[1772639538082,4.33135808,2138.5,2137.6,0.001]
[1772639538253,4.33135808,2138.3,2137.6,0.001]
[1772639538452,0.43505677,2138.2,2137.6,0.001]
[1772639538650,1.16926242,2138.1,2137.6,0.001]
[1772639538849,1.16926242,2138.1,2137.1,1.80250143]
[1772639539169,1.16926242,2138.1,2137.1,0.6327346]
[1772639539170,0.43499759,2138.0,2137.1,0.6327346]
[1772639539479,1.16926242,2138.1,2137.1,0.6327346]
[1772639539779,1.16926242,2138.1,2136.9,0.001]
[1772639539780,4.48909358,2137.8,2136.9,0.001]
[1772639540074,2.70700434,2137.9,2136.9,0.001]
[1772639540075,5.83709219,2137.7,2136.9,0.001]
[1772639540244,4.92409219,2137.6,2136.6,0.001]
[1772639540444,4.48909358,2137.4,2136.6,0.001]
[1772639540651,0.43499861,2137.3,2136.6,0.001]
[1772639540854,1.16975481,2137.2,2136.6,0.001]
[1772639541181,1.16959064,2137.5,2136.6,0.001]
[1772639541773,4.92338554,2137.4,2136.6,0.001]
[1772639541973,1.16959064,2137.5,2136.6,0.001]
[1772639541974,4.92344041,2137.3,2136.6,0.001]
[1772639542173,4.92344041,2137.2,2136.6,0.001]
[1772639542347,1.16959064,2137.5,2136.6,0.001]
[1772639543157,0.914,2137.7,2136.6,0.001]
[1772639543453,0.914,2137.7,2136.6,4.45351832]
[1772639543669,1.16948466,2137.7,2136.6,0.001]
[1772639544968,1.16931711,2138.0,2136.6,0.001]
[1772639545169,1.16931711,2138.0,2136.6,4.45351832]
[1772639545348,2.08325136,2138.2,2136.6,4.45351832]
[1772639545857,2.08325136,2138.2,2136.8,4.45251832]
[1772639546480,6.44521648,2138.2,2136.8,4.45251832]
[1772639546653,6.44521648,2138.2,2136.6,0.964]
[1772639546654,4.36196512,2137.7,2136.6,0.001]
[1772639546847,1.16959064,2137.5,2136.6,0.001]
[1772639547048,4.36196512,2137.4,2136.6,0.001]
[1772639548213,4.36196512,2137.4,2135.5,4.45251832]
[1772639548382,4.79487319,2137.3,2135.5,5.62318445]
[1772639548557,4.36196512,2137.3,2135.5,5.62318445]
[1772639548884,1.16975481,2137.2,2135.6,4.45251832]
[1772639549085,1.16975481,2137.2,2136.5,0.001]
[1772639549284,1.16964536,2137.5,2136.5,0.001]
[1772639549751,4.36196512,2137.4,2136.5,0.001]
[1772639550287,4.36196512,2137.3,2136.5,0.001]
[1772639550464,1.16964536,2137.5,2136.5,0.001]
[1772639551156,4.36196512,2137.4,2136.5,0.001]
[1772639551850,1.16964536,2137.5,2136.5,0.001]
[1772639552860,1.16952081,2137.7,2136.5,4.45351832]
[1772639553184,4.67792487,2137.8,2136.6,1.1700833]
[1772639554180,9.03988999,2137.8,2136.6,1.1700833]
[1772639554575,4.67792487,2137.9,2136.6,5.62260162]
[1772639554766,4.67792487,2137.9,2136.7,4.45251832]
[1772639554968,1.16937181,2137.9,2136.8,0.959]
[1772639555160,1.16937181,2137.9,2136.9,1.16991904]
[1772639556392,1.16937181,2137.9,2136.9,5.62243736]
[1772639556571,5.5941785,2138.5,2137.0,4.45251832]
[1772639556572,1.16920774,2138.2,2137.0,4.45251832]
[1772639557299,4.67619818,2138.5,2137.1,2.12880955]
[1772639557480,4.67619818,2138.5,2137.1,6.58132787]
[1772639557806,4.67619818,2138.5,2137.1,1.16980955]
[1772639557807,4.36196512,2138.4,2137.1,1.16980955]
[1772639557972,5.28096512,2138.4,2137.1,1.16980955]
[1772639558173,4.36196512,2138.2,2136.7,5.62250623]
[1772639558406,4.36196512,2138.0,2136.7,1.16998791]
[1772639558574,0.43365195,2138.1,2136.6,4.68022212]
[1772639558575,5.28096512,2137.9,2136.6,1.17006798]
[1772639558767,0.919,2137.8,2136.6,1.17006798]
[1772639559170,1.16948121,2137.7,2136.5,4.68133323]
[1772639559593,1.16948121,2137.7,2136.6,0.959]
[1772639560195,1.16948121,2137.7,2136.5,4.68133323]
[1772639560498,4.79683792,2137.6,2136.5,0.001]
[1772639560670,4.79683792,2137.5,2136.5,0.001]
[1772639560867,4.4585621,2137.3,2136.5,0.001]
[1772639561270,1.16975481,2137.2,2136.5,0.001]
[1772639562082,4.79685516,2137.1,2135.4,1.17074084]
[1772639562285,4.36196512,2136.8,2135.4,1.17074084]
[1772639562502,4.36196512,2136.8,2135.2,0.7522595]
[1772639562503,4.36196512,2136.0,2135.2,0.7522595]
[1772639562800,2.16422767,2136.1,2134.2,2.11133344]
[1772639562801,5.71685516,2135.9,2134.3,4.68532716]
[1772639562998,0.43489004,2135.8,2134.3,4.68532716]
[1772639563172,1.17057639,2135.7,2134.3,4.68532716]
[1772639563375,4.4585621,2135.6,2134.3,4.68532716]
[1772639563685,4.4585621,2135.6,2134.4,0.959]
[1772639564899,4.4585621,2135.6,2134.3,9.13784548]
[1772639565103,4.4585621,2135.6,2134.5,0.959]
[1772639565306,1.17068602,2135.5,2134.3,9.13784548]
[1772639565476,1.17068602,2135.5,2134.5,0.96]
[1772639565977,4.4585621,2135.6,2134.6,4.45251832]
[1772639566173,5.53215796,2136.4,2134.6,4.45251832]
[1772639566598,2.09112333,2136.6,2134.8,4.45251832]
[1772639566812,2.09109642,2136.6,2134.8,4.45251832]
[1772639566975,2.09190541,2137.0,2135.2,4.45251832]
[1772639567180,2.09190541,2137.0,2135.4,4.45251832]
[1772639567406,2.09190541,2137.0,2135.5,1.17068602]
[1772639567603,2.09190541,2137.0,2135.5,2.13068602]
[1772639567813,1.16990541,2137.0,2135.6,5.41251832]
[1772639567979,1.16990541,2137.0,2135.7,0.96]
[1772639568601,5.49452921,2136.9,2135.5,1.17068602]
[1772639568909,4.57252921,2136.5,2134.8,8.80763128]
[1772639569098,1.3561118,2136.4,2134.8,8.80763128]
[1772639569296,0.43413038,2136.3,2134.8,8.80763128]
[1772639569494,1.1703024,2136.2,2134.8,8.80763128]
[1772639569695,1.1703024,2136.2,2134.8,1.17106988]
[1772639569696,5.00671244,2136.1,2134.8,1.17106988]
[1772639569897,5.00671244,2136.0,2134.8,1.17106988]
[1772639570098,4.57252921,2136.0,2134.8,1.17106988]
[1772639570487,4.57252921,2136.0,2134.8,2.13106988]